bitfinex-derivatives/quotes_BTCF0:USTF0_20250827
["timestamp","ask_amount","ask_price","bid_price","bid_amount"]
[1756304114010,1.07081698,111690.0,111680.0,0.14174]
[1756304114705,1.32081698,111690.0,111680.0,0.14174]
[1756304115006,0.0895287,111680.0,111670.0,0.03145]
[1756304115204,1.82523148,111680.0,111670.0,0.03145]
[1756304116907,0.60655148,111680.0,111670.0,0.02845]
[1756304117102,0.0895275,111680.0,111670.0,0.99580168]
[1756304117303,0.0895275,111680.0,111670.0,0.63925]
[1756304117808,0.0905275,111680.0,111670.0,0.63925]
[1756304118203,0.0905275,111680.0,111670.0,0.7287862]
[1756304118710,0.96835028,111680.0,111670.0,0.02845]
[1756304119411,0.0905275,111680.0,111670.0,0.1179862]
[1756304119605,0.0905275,111680.0,111670.0,0.02845]
[1756304120007,0.0905275,111680.0,111670.0,0.1179862]
[1756304120307,0.0905275,111680.0,111670.0,0.02845]
[1756304120704,0.0905275,111680.0,111670.0,0.1179862]
[1756304121403,0.0905275,111680.0,111670.0,0.38925]
[1756304121609,0.0905275,111680.0,111670.0,0.02845]
[1756304122311,1.58835028,111680.0,111670.0,0.02845]
[1756304122510,0.0895443,111660.0,111650.0,0.13447]
[1756304122709,1.46424708,111660.0,111650.0,0.13447]
[1756304122912,1.82504708,111660.0,111650.0,0.13447]
[1756304123214,2.07504708,111660.0,111650.0,0.13447]
[1756304123418,0.0895685,111630.0,111620.0,0.02782]
[1756304123612,0.60659128,111630.0,111620.0,0.02782]
[1756304124622,0.0885685,111630.0,111620.0,0.02782]
[1756304124815,0.0895658,111640.0,111620.0,0.728196]
[1756304125016,0.0905685,111630.0,111620.0,0.99521878]
[1756304125224,0.0895635,111640.0,111630.0,0.0895675]
[1756304125421,0.0895635,111640.0,111630.0,1.06486028]
[1756304125716,0.0895604,111640.0,111630.0,1.31486028]
[1756304125910,0.0895604,111640.0,111630.0,1.22529278]
[1756304126317,0.0895604,111640.0,111630.0,0.70827]
[1756304126615,0.0905604,111640.0,111630.0,0.70827]
[1756304127321,0.0905604,111640.0,111630.0,0.7978382]
[1756304127723,0.4513604,111640.0,111630.0,0.09747]
[1756304127921,2.13347318,111640.0,111630.0,0.09747]
[1756304128219,2.14273372,111640.0,111630.0,0.09747]
[1756304128420,2.55422067,111640.0,111630.0,0.06021]
[1756304128613,0.0895682,111630.0,111620.0,0.02998]
[1756304128818,1.21739098,111630.0,111620.0,0.02998]
[1756304129019,0.0895923,111600.0,111590.0,0.3608]
[1756304129319,0.3608,111610.0,111590.0,0.38862]
[1756304129521,0.0895872,111610.0,111600.0,0.60661508]
[1756304129825,0.4503808,111620.0,111600.0,0.96741508]
[1756304130026,0.0895808,111620.0,111600.0,0.96741508]
[1756304130324,0.0895843,111610.0,111600.0,0.4503923]
[1756304130517,0.0895843,111610.0,111600.0,0.5363723]
[1756304130720,0.0895807,111620.0,111610.0,0.0895833]
[1756304131016,0.0895807,111620.0,111610.0,0.91482278]
[1756304131217,0.0895807,111620.0,111610.0,0.3978]
[1756304131918,0.0895807,111620.0,111610.0,1.00440708]
[1756304132617,0.0895731,111630.0,111610.0,1.25440708]
[1756304132818,0.0995731,111630.0,111610.0,1.00440078]
[1756304133123,0.0905762,111620.0,111610.0,1.26136]
[1756304133421,0.0905762,111620.0,111610.0,0.3978]
[1756304133624,0.60759898,111620.0,111610.0,0.3978]
[1756304133919,0.0905762,111620.0,111610.0,0.3978]
[1756304134123,0.79100706,111630.0,111610.0,0.3978]
[1756304134324,0.0895762,111620.0,111610.0,0.3978]
[1756304134715,0.0895762,111620.0,111610.0,1.00440708]
[1756304134917,0.0895762,111620.0,111610.0,0.91482278]
[1756304135226,0.0895762,111620.0,111610.0,0.3978]
[1756304135520,2.08199898,111620.0,111610.0,0.037]
[1756304137226,2.41199898,111620.0,111610.0,0.037]
[1756304137525,0.0895842,111610.0,111600.0,0.08598]
[1756304137726,0.97740698,111610.0,111600.0,0.08598]
[1756304138326,1.84128698,111610.0,111600.0,0.08598]
[1756304138525,1.84120698,111610.0,111600.0,0.08598]
[1756304139028,1.84120698,111610.0,111600.0,0.08698]
[1756304139419,0.0995842,111610.0,111600.0,0.44778]
[1756304139617,0.01,111610.0,111600.0,1.30439508]
[1756304139817,0.0895811,111620.0,111610.0,0.1623442]
[1756304140021,0.0895811,111620.0,111610.0,1.04016698]
[1756304140231,0.0895811,111620.0,111610.0,0.5231442]
[1756304140536,0.0895762,111620.0,111610.0,1.29016698]
[1756304141124,0.0895762,111620.0,111610.0,0.7731442]
[1756304141634,0.0895762,111620.0,111610.0,0.68356]
[1756304142021,0.0895762,111620.0,111610.0,0.7731442]
[1756304142632,0.10919502,111630.0,111620.0,0.0895762]
[1756304142929,0.099571,111630.0,111620.0,1.83127898]
[1756304143128,0.099571,111630.0,111620.0,1.83163898]
[1756304144327,0.100571,111630.0,111620.0,1.3146962]
[1756304144529,0.101571,111630.0,111620.0,0.4503762]
[1756304144832,0.101571,111630.0,111620.0,1.3140962]
[1756304145634,0.002,111630.0,111620.0,2.08111898]
[1756304146337,0.002,111630.0,111620.0,2.08071898]
[1756304146338,0.0915682,111630.0,111620.0,2.08071898]
[1756304147739,0.002,111630.0,111620.0,1.21739898]
[1756304147940,0.0915681,111630.0,111620.0,1.21739898]
[1756304148131,0.0915681,111630.0,111620.0,2.07971898]
[1756304148336,0.002,111630.0,111620.0,2.07971898]
[1756304148630,0.13715,111640.0,111630.0,0.0895681]
[1756304148827,0.13715,111640.0,111630.0,0.96739088]
[1756304149534,0.2267102,111640.0,111630.0,0.96739088]
[1756304149735,0.2267102,111640.0,111630.0,1.82915088]
[1756304149937,0.13715,111640.0,111630.0,1.82915088]
[1756304150133,0.13715,111640.0,111630.0,2.07915088]
[1756304150536,0.13715,111640.0,111630.0,2.07847088]
[1756304150740,0.0895468,111660.0,111650.0,0.0895522]
[1756304150938,0.0895468,111660.0,111650.0,2.18925498]
[1756304151242,0.0895374,111670.0,111660.0,0.0895379]
[1756304151441,0.0895353,111680.0,111670.0,0.0895362]
[1756304151636,0.1295353,111680.0,111670.0,0.4503362]
[1756304151932,0.450322,111690.0,111670.0,0.4503362]
[1756304151933,0.0895212,111690.0,111670.0,2.07835898]
[1756304152139,1.02007091,111700.0,111690.0,0.0895202]
[1756304152341,1.02007091,111700.0,111690.0,1.82842298]
[1756304152641,1.02007091,111700.0,111690.0,0.96734298]
[1756304152833,1.14527261,111700.0,111690.0,1.22284]
[1756304153028,1.20629261,111700.0,111690.0,1.22284]
[1756304153229,1.20629261,111700.0,111690.0,1.3123598]
[1756304153434,1.20629261,111700.0,111690.0,1.3123198]
[1756304153634,1.20629261,111700.0,111690.0,0.4503198]
[1756304153842,1.20629261,111700.0,111690.0,1.3123198]
[1756304154546,1.20629261,111700.0,111690.0,1.22268]
[1756304154547,1.23310261,111700.0,111690.0,1.22268]
[1756304155136,1.23410261,111700.0,111690.0,1.22268]
[1756304155543,1.23410261,111700.0,111690.0,0.3608]
[1756304155740,1.23410261,111700.0,111680.0,1.22204]
[1756304155741,0.0895196,111690.0,111680.0,1.22204]
[1756304156138,0.0895196,111690.0,111680.0,0.3608]
[1756304156539,0.0895196,111690.0,111680.0,1.22184]
[1756304156740,0.85654238,111690.0,111680.0,0.3608]
[1756304157044,0.0895284,111680.0,111670.0,1.22172]
[1756304157342,0.0895284,111680.0,111670.0,1.58252]
[1756304157940,0.0895284,111680.0,111670.0,1.64116]
[1756304158133,0.0895284,111680.0,111670.0,0.78024]
[1756304158345,0.85655118,111680.0,111670.0,0.41944]
[1756304159044,0.85755118,111680.0,111670.0,0.41944]
[1756304159243,0.3405284,111680.0,111670.0,0.41944]
[1756304159545,0.85755118,111680.0,111670.0,0.41944]
[1756304159941,0.3415284,111680.0,111670.0,0.41944]
[1756304160741,0.3405284,111680.0,111670.0,0.5089756]
[1756304161041,0.003,111680.0,111670.0,1.38679838]
[1756304161242,0.0895208,111690.0,111680.0,0.0895275]
[1756304161443,1.14359091,111700.0,111680.0,0.0895275]
[1756304161444,1.14359091,111700.0,111690.0,0.0895195]
[1756304161645,1.14359091,111700.0,111690.0,0.4503195]
[1756304161946,1.14359091,111700.0,111690.0,0.96734228]
[1756304162143,1.12352,111700.0,111690.0,0.96734228]
[1756304162342,1.12352,111700.0,111690.0,1.21734228]
[1756304162343,1.08915,111700.0,111690.0,1.21734228]
[1756304162539,0.98865,111700.0,111690.0,1.21734228]
[1756304163345,0.98865,111700.0,111690.0,1.82694228]
[1756304164246,0.99165,111700.0,111690.0,1.82694228]
[1756304165038,0.98865,111700.0,111690.0,1.82694228]
[1756304165435,0.98865,111700.0,111690.0,1.82794228]
[1756304165641,0.98865,111700.0,111690.0,2.42794228]
[1756304165835,0.14274495,111700.0,111690.0,2.94496506]
[1756304166246,0.14274495,111700.0,111690.0,3.27496506]
[1756304166446,0.14274495,111700.0,111690.0,3.27696506]
[1756304166739,0.14274495,111700.0,111690.0,1.30034228]
[1756304166942,0.14274495,111700.0,111690.0,2.10962228]
[1756304167143,0.14274495,111700.0,111690.0,2.08962228]
[1756304167448,0.14274495,111700.0,111690.0,2.08862228]
[1756304167746,0.14274495,111700.0,111690.0,2.09062228]
[1756304167943,0.14274495,111700.0,111690.0,2.11062228]
[1756304168648,0.03973375,111700.0,111690.0,2.91062228]
[1756304168848,0.04413,111720.0,111710.0,0.10782417]
[1756304169044,0.04413,111720.0,111710.0,2.20676695]
[1756304169850,0.1651245,111740.0,111730.0,0.1480677]
[1756304170050,0.1651245,111740.0,111730.0,1.7295477]
[1756304170342,0.68214728,111740.0,111730.0,0.78018]
[1756304170543,0.71927728,111740.0,111730.0,0.78018]
[1756304170752,1.03474728,111740.0,111730.0,1.63974]
[1756304172251,1.03674728,111740.0,111730.0,1.63974]
[1756304173249,0.2717245,111740.0,111730.0,1.7292282]
[1756304173853,0.2717245,111740.0,111730.0,1.63974]
[1756304174052,0.78874728,111740.0,111730.0,1.63974]
[1756304174646,0.43224,111740.0,111730.0,1.7292278]
[1756304175047,0.18224,111740.0,111730.0,2.24625058]
[1756304176152,0.18224,111740.0,111730.0,2.49625058]
[1756304176654,0.18224,111740.0,111730.0,1.9792278]
[1756304176854,0.18224,111740.0,111730.0,2.49625058]
[1756304177453,0.15486,111740.0,111730.0,2.49625058]
[1756304177654,0.06253,111740.0,111730.0,2.49625058]
[1756304178148,0.02193,111740.0,111730.0,2.8542485]
[1756304178351,0.0894559,111770.0,111760.0,0.0894579]
[1756304178650,0.1198259,111770.0,111760.0,1.6707779]
[1756304179250,0.63684868,111770.0,111760.0,1.58236]
[1756304179448,0.63684868,111770.0,111760.0,1.58252]
[1756304179651,0.71924868,111770.0,111760.0,1.58252]
[1756304180050,0.2022259,111770.0,111760.0,1.58252]
[1756304180253,0.2676959,111770.0,111760.0,1.58252]
[1756304180455,0.2676959,111770.0,111760.0,1.6719842]
[1756304180655,0.2696959,111770.0,111760.0,1.6719842]
[1756304181154,0.2696959,111770.0,111760.0,1.58264]
[1756304181347,0.78671868,111770.0,111760.0,1.58264]
[1756304181551,0.78671868,111770.0,111760.0,1.6721041]
[1756304182158,0.2696959,111770.0,111760.0,1.6721041]
[1756304182663,0.18024,111770.0,111760.0,1.6721041]
[1756304182858,0.2696963,111770.0,111760.0,1.6721041]
[1756304183758,0.78671908,111770.0,111760.0,0.7216]
[1756304183952,1.03671908,111770.0,111760.0,1.58196]
[1756304184262,0.5196963,111770.0,111760.0,1.6714243]
[1756304185250,0.2696963,111770.0,111760.0,1.6714243]
[1756304185657,0.18024,111770.0,111760.0,1.6714243]
[1756304186351,0.18024,111770.0,111760.0,2.43844708]
[1756304186661,0.07667,111770.0,111760.0,2.43844708]
[1756304186854,0.00347,111770.0,111760.0,2.43844708]
[1756304187159,0.12900439,111790.0,111780.0,0.089448]
[1756304187356,0.64602717,111790.0,111780.0,0.3608]
[1756304187860,0.63683538,111790.0,111780.0,0.3608]
[1756304188059,0.63683538,111790.0,111770.0,1.25603]
[1756304188060,0.089448,111780.0,111770.0,1.25603]
[1756304188249,0.60647078,111780.0,111770.0,1.25603]
[1756304188452,0.60647078,111780.0,111770.0,1.25611]
[1756304188648,0.90174078,111780.0,111770.0,0.39539]
[1756304188851,0.93887078,111780.0,111770.0,0.03459]
[1756304189150,0.154926,111770.0,111760.0,0.005]
[1756304189356,0.154926,111770.0,111740.0,0.3608]
[1756304189357,0.089472,111750.0,111740.0,0.3608]
[1756304189556,0.60649478,111750.0,111740.0,1.31096]
[1756304189755,0.089464,111760.0,111740.0,1.31096]
[1756304189756,0.60649168,111760.0,111740.0,1.31096]
[1756304189951,0.60649168,111760.0,111750.0,0.3608]
[1756304190561,0.60649168,111760.0,111750.0,0.4502723]
[1756304190957,0.60649168,111760.0,111750.0,0.3608]
[1756304191164,0.06547,111770.0,111760.0,0.089464]
[1756304191362,0.06547,111770.0,111760.0,1.310344]
[1756304191363,0.1549316,111770.0,111760.0,1.310344]
[1756304191763,0.1549316,111770.0,111760.0,0.3618]
[1756304191966,0.92195438,111770.0,111760.0,0.86136]
[1756304192155,0.92195438,111770.0,111760.0,1.311624]
[1756304192360,0.1549316,111770.0,111760.0,1.311624]
[1756304192565,0.1549316,111770.0,111760.0,1.310624]
[1756304193165,0.1549316,111770.0,111760.0,0.450264]
[1756304193466,0.089464,111760.0,111750.0,1.23964076]
[1756304193665,0.60648678,111760.0,111750.0,1.23964076]
[1756304194164,0.85648678,111760.0,111750.0,0.37856076]
[1756304194372,0.85648678,111760.0,111750.0,1.23988076]
[1756304194666,0.85648678,111760.0,111750.0,0.01776076]
[1756304194863,0.85648678,111760.0,111750.0,0.37856076]
[1756304195063,0.60648678,111760.0,111750.0,0.46803306]
[1756304195362,0.089464,111760.0,111750.0,0.46803306]
[1756304195565,0.1549318,111770.0,111760.0,0.0894643]
[1756304195753,0.1549263,111770.0,111760.0,1.3115043]
[1756304195952,0.06547,111770.0,111760.0,1.3115043]
[1756304196663,0.1549263,111770.0,111760.0,0.4502643]
[1756304196862,0.0894643,111760.0,111750.0,0.37856076]
[1756304197065,0.60648708,111760.0,111750.0,1.32939306]
[1756304197267,0.67195508,111770.0,111760.0,0.089464]
[1756304197467,0.67195508,111770.0,111760.0,0.450264]
[1756304197860,0.67195508,111770.0,111760.0,0.3608]
[1756304198362,0.1549323,111770.0,111760.0,0.450264]
[1756304199059,0.06547,111770.0,111760.0,0.450264]
[1756304199260,0.06647,111770.0,111760.0,0.450264]
[1756304199459,0.155926,111770.0,111760.0,1.312464]
[1756304199660,0.155926,111770.0,111760.0,1.312344]
[1756304199867,0.203626,111770.0,111760.0,1.348744]
[1756304200569,0.75247878,111770.0,111760.0,1.29104]
[1756304200765,0.75247878,111770.0,111760.0,0.42896]
[1756304200766,1.00247878,111770.0,111760.0,0.42896]
[1756304201860,1.00247878,111770.0,111760.0,0.06816]
[1756304202260,0.089464,111760.0,111750.0,0.01776076]
[1756304202474,0.08948,111740.0,111730.0,1.33116432]
[1756304202671,0.60650278,111740.0,111730.0,1.69196432]
[1756304202868,0.64671278,111740.0,111730.0,1.69196432]
[1756304203071,0.64671278,111740.0,111730.0,0.73959792]
[1756304203370,0.64671278,111740.0,111730.0,0.7216]
[1756304204166,0.64671278,111740.0,111730.0,0.811088]
[1756304204471,0.64671278,111740.0,111730.0,0.838328]
[1756304204870,0.12969,111740.0,111730.0,0.838328]
[1756304205469,0.04021,111740.0,111730.0,1.60735078]
[1756304205772,0.04021,111740.0,111730.0,1.62569872]
[1756304206173,0.12969,111740.0,111730.0,0.85867594]
[1756304206372,0.12969,111740.0,111730.0,1.72407594]
[1756304206573,0.12969,111740.0,111730.0,1.72207594]
[1756304207272,0.12969,111740.0,111730.0,1.72007594]
[1756304207472,0.12969,111740.0,111730.0,1.72107594]
[1756304207775,0.64671278,111740.0,111730.0,0.76818794]
[1756304207962,0.64671278,111740.0,111730.0,1.63154794]
[1756304208165,0.64671278,111740.0,111730.0,1.72103594]
[1756304208567,0.12969,111740.0,111730.0,1.72103594]
[1756304209271,0.04021,111740.0,111730.0,1.72103594]
[1756304209475,0.12969,111740.0,111730.0,1.72103594]
[1756304210474,0.64671278,111740.0,111730.0,1.63094794]
[1756304210663,0.64671278,111740.0,111730.0,0.76818794]
[1756304211069,0.64671278,111740.0,111730.0,1.63122794]
[1756304211269,0.65596388,111740.0,111730.0,1.63122794]
[1756304211672,0.65596388,111740.0,111730.0,0.90962794]
[1756304211972,0.65596388,111740.0,111730.0,0.04658794]
[1756304211973,0.90596388,111740.0,111730.0,0.04658794]
[1756304212275,0.10929973,111730.0,111720.0,0.15206003]
[1756304212467,0.62632251,111730.0,111720.0,0.04076]
[1756304213677,0.62632251,111730.0,111720.0,0.04276]
[1756304213872,0.62632251,111730.0,111720.0,0.04476]
[1756304214074,0.0895041,111710.0,111700.0,1.34846003]
[1756304214271,0.60652688,111710.0,111700.0,1.34846003]
[1756304214579,0.60652688,111710.0,111700.0,1.23716]
[1756304214876,0.60652688,111710.0,111700.0,1.3266721]
[1756304216380,0.60652688,111710.0,111700.0,1.23716]
[1756304216577,0.60652688,111710.0,111700.0,0.4098]
[1756304216775,2.07390256,111710.0,111680.0,0.49132136]
[1756304216983,0.60654288,111690.0,111680.0,0.38002133]
[1756304217273,0.60354288,111690.0,111680.0,0.49033943]
[1756304217479,0.0865201,111690.0,111680.0,0.40081133]
[1756304217676,0.60354288,111690.0,111680.0,0.40081133]
[1756304217873,0.66658288,111690.0,111680.0,0.40081133]
[1756304218875,0.66658288,111690.0,111680.0,0.41381133]
[1756304219270,0.66658288,111690.0,111680.0,0.50333943]
[1756304219682,0.1495601,111690.0,111680.0,1.36953943]
[1756304219879,0.1495601,111690.0,111680.0,1.61953943]
[1756304220180,0.06304,111690.0,111680.0,1.61953943]
[1756304220385,0.06304,111690.0,111680.0,1.61653943]
[1756304220584,0.1545601,111690.0,111680.0,1.61653943]
[1756304220786,0.07104,111690.0,111680.0,1.61653943]
[1756304222379,0.1090606,111710.0,111700.0,0.0895121]
[1756304222579,0.1090606,111710.0,111700.0,1.3123521]
[1756304222776,0.1090606,111710.0,111700.0,1.22284]
[1756304223186,0.62608338,111710.0,111700.0,1.3123521]
[1756304223776,0.63108338,111710.0,111700.0,1.3123521]
[1756304223983,0.0275529,111710.0,111700.0,2.44017488]
[1756304224180,0.117057,111710.0,111700.0,2.44017488]
[1756304224486,0.62907978,111710.0,111700.0,0.7216]
[1756304224791,0.63207978,111710.0,111700.0,1.6729521]
[1756304225088,0.62907978,111710.0,111700.0,1.6729521]
[1756304225290,0.112057,111710.0,111700.0,1.6728321]
[1756304225481,0.62907978,111710.0,111700.0,1.6728321]
[1756304226085,0.113057,111710.0,111700.0,1.6728321]
[1756304226586,0.0235529,111710.0,111700.0,2.18985488]
[1756304226779,0.0235529,111710.0,111700.0,2.43985488]
[1756304226983,0.0205529,111710.0,111700.0,2.43949488]
[1756304227384,0.0195529,111710.0,111700.0,2.44149488]
[1756304227584,0.0195529,111710.0,111700.0,1.58013488]
[1756304227783,0.0195529,111710.0,111700.0,2.43965488]
[1756304227987,0.08285163,111730.0,111720.0,0.0894961]
[1756304228187,0.08285163,111730.0,111720.0,1.6726161]
[1756304228492,0.17233963,111730.0,111720.0,1.6726161]
[1756304229481,0.08285163,111730.0,111720.0,2.43963888]
[1756304229681,0.04721163,111730.0,111720.0,2.43963888]
[1756304229895,0.01554163,111730.0,111720.0,1.57827888]
[1756304230091,0.04021,111740.0,111730.0,0.089488]
[1756304230291,0.04021,111740.0,111730.0,0.96731078]
[1756304230997,0.04021,111740.0,111730.0,1.82815078]
[1756304231495,0.04021,111740.0,111730.0,1.311128]
[1756304231795,0.04021,111740.0,111730.0,1.82815078]
[1756304231994,0.04021,111740.0,111730.0,2.18945081]
[1756304232189,0.04021,111740.0,111730.0,2.18889081]
[1756304232786,0.01984889,111750.0,111740.0,0.08948]
[1756304232987,0.62634367,111750.0,111740.0,1.31064]
[1756304234292,0.10932089,111750.0,111740.0,1.31064]
[1756304234891,0.10932089,111750.0,111740.0,1.31164]
[1756304236502,0.10932089,111750.0,111740.0,0.45128]
[1756304236686,0.10932089,111750.0,111740.0,0.3618]
[1756304236891,0.10932089,111750.0,111740.0,1.22092]
[1756304237087,0.62634367,111750.0,111740.0,1.22084]
[1756304237296,0.62634367,111750.0,111740.0,1.31032]
[1756304237800,0.62634367,111750.0,111740.0,0.3618]
[1756304238098,0.62634367,111750.0,111740.0,1.2208]
[1756304238292,0.62634367,111750.0,111740.0,1.31028]
[1756304238802,0.62634367,111750.0,111740.0,1.22072]
[1756304239105,0.62634367,111750.0,111740.0,1.22032]
[1756304239293,0.62734367,111750.0,111740.0,0.3618]
[1756304239489,0.87734367,111750.0,111740.0,0.3618]
[1756304239902,0.87734367,111750.0,111740.0,0.001]
[1756304240294,0.0894802,111740.0,111730.0,0.4502874]
[1756304240492,0.60650298,111740.0,111730.0,0.3608]
[1756304241702,0.60650298,111740.0,111730.0,0.3618]
[1756304242202,0.60650298,111740.0,111730.0,0.4512883]
[1756304243102,0.60650298,111740.0,111730.0,0.3618]
[1756304243494,0.60650298,111740.0,111730.0,0.3608]
[1756304244203,0.60750298,111740.0,111730.0,0.3608]
[1756304245706,0.60750298,111740.0,111730.0,0.4502883]
[1756304246099,0.001,111740.0,111730.0,0.4502883]
[1756304246307,0.001,111740.0,111730.0,1.21731108]
[1756304247903,0.0894734,111750.0,111740.0,0.08948]
[1756304248102,0.0894696,111760.0,111750.0,0.0894706]
[1756304248302,0.60649238,111760.0,111750.0,0.4502706]
[1756304250910,0.60749238,111760.0,111750.0,0.4502706]
[1756304251108,0.0904696,111760.0,111750.0,0.4502706]
[1756304251304,0.60749238,111760.0,111750.0,0.4502706]
[1756304251998,0.001,111760.0,111750.0,0.4502706]
[1756304252199,0.001,111760.0,111750.0,1.21729338]
[1756304252507,0.001,111760.0,111750.0,1.23557583]
[1756304252709,0.001,111760.0,111750.0,1.34687586]
[1756304253109,0.001,111760.0,111750.0,1.23557583]
[1756304253501,0.001,111760.0,111750.0,2.20523586]
[1756304253907,0.001,111760.0,111750.0,2.09393583]
[1756304254211,0.001,111760.0,111750.0,1.57687305]
[1756304255509,0.001,111760.0,111750.0,2.09389583]
[1756304255707,0.001,111760.0,111750.0,1.23557583]
[1756304256011,0.001,111760.0,111750.0,2.09389583]
[1756304257113,0.090464,111760.0,111750.0,1.57683305]
[1756304257303,0.001,111760.0,111750.0,2.09385583]
[1756304258310,0.42837285,111780.0,111760.0,0.0894597]
[1756304258610,0.51782085,111780.0,111770.0,1.21904]
[1756304258813,0.60647078,111780.0,111770.0,1.308496]
[1756304259007,0.60647078,111780.0,111770.0,0.3608]
[1756304259207,0.60647078,111780.0,111770.0,1.219]
[1756304261314,0.60647078,111780.0,111770.0,0.450256]
[1756304261510,0.85647078,111780.0,111770.0,0.3608]
[1756304262112,0.089464,111760.0,111750.0,1.23724245]
[1756304262416,0.0894604,111770.0,111760.0,0.089464]
[1756304262612,0.0894604,111770.0,111760.0,0.450264]
[1756304262914,0.60648318,111770.0,111760.0,0.450264]
[1756304263614,0.65307318,111770.0,111760.0,0.450264]
[1756304264616,0.1360504,111770.0,111760.0,0.450264]
[1756304265716,0.65307318,111770.0,111760.0,1.21892]
[1756304266511,0.1360504,111770.0,111760.0,1.3083839]
[1756304266718,0.65307318,111770.0,111760.0,0.3608]
[1756304267120,0.65507318,111770.0,111760.0,0.4502639]
[1756304267613,0.1380504,111770.0,111760.0,0.3608]
[1756304267818,0.65507318,111770.0,111760.0,0.4502639]
[1756304268317,0.65507318,111770.0,111760.0,0.3608]
[1756304269212,0.65507318,111770.0,111760.0,0.4502639]
[1756304269817,0.1380504,111770.0,111760.0,0.4502639]
[1756304270122,0.04859,111770.0,111760.0,1.21728668]
[1756304273121,0.04859,111770.0,111760.0,0.4502639]
[1756304273319,0.04859,111770.0,111760.0,1.82524668]
[1756304275115,0.04859,111770.0,111760.0,1.93662772]
[1756304275511,0.483958,111800.0,111790.0,0.04527]
[1756304275723,0.483958,111800.0,111790.0,0.40607]
[1756304275724,0.5733899,111800.0,111790.0,0.40607]
[1756304275916,0.0894319,111800.0,111790.0,1.2764299]
[1756304276122,0.0894319,111800.0,111790.0,1.28535686]
[1756304276923,0.0894319,111800.0,111790.0,1.2764299]
[1756304277221,0.0894319,111800.0,111790.0,0.4955099]
[1756304277528,0.1360219,111800.0,111790.0,1.3533499]
[1756304277820,0.1360219,111800.0,111790.0,1.36222031]
[1756304278017,0.1360219,111800.0,111790.0,1.3533499]
[1756304278421,0.05059,111800.0,111790.0,1.3553499]
[1756304278622,0.05059,111800.0,111790.0,1.87237268]
[1756304279010,0.05059,111800.0,111790.0,1.98374699]
[1756304279210,0.00428,111800.0,111790.0,2.23374699]
[1756304279427,0.005,111810.0,111800.0,0.0894319]
[1756304279616,0.005,111810.0,111800.0,1.82501468]
[1756304279916,0.005,111810.0,111800.0,2.18638899]
[1756304280122,0.005,111810.0,111800.0,1.32862899]
[1756304280319,0.005,111810.0,111800.0,2.18638899]
[1756304280523,0.005,111820.0,111810.0,0.0894239]
[1756304280821,0.0893706,111880.0,111860.0,0.0893795]
[1756304281015,0.0893706,111880.0,111870.0,0.3608]
[1756304281016,0.96639338,111880.0,111870.0,0.3608]
[1756304281524,1.01298338,111880.0,111870.0,0.3608]
[1756304282628,1.02213897,111880.0,111870.0,0.3608]
[1756304283923,1.63293897,111880.0,111850.0,1.32793467]
[1756304284219,0.0893839,111860.0,111850.0,1.32789467]
[1756304285025,0.0893839,111860.0,111850.0,1.32785467]
[1756304285627,0.0913839,111860.0,111850.0,1.32785467]
[1756304286025,0.85840668,111860.0,111850.0,1.27161287]
[1756304286328,0.85840668,111860.0,111850.0,0.05337287]
[1756304286718,0.85840668,111860.0,111850.0,0.41417287]
[1756304286927,0.85840668,111860.0,111850.0,0.50356477]
[1756304287121,0.0913839,111860.0,111850.0,0.50356477]
[1756304287528,0.0913839,111860.0,111850.0,0.41417287]
[1756304287835,0.0913839,111860.0,111850.0,0.50356477]
[1756304288026,0.0913839,111860.0,111850.0,0.41417287]
[1756304288227,0.60840668,111860.0,111850.0,1.27145287]
[1756304288828,0.0913839,111860.0,111850.0,1.36084477]
[1756304290135,0.0913839,111860.0,111850.0,1.27145287]
[1756304290436,0.85840668,111860.0,111850.0,0.41417287]
[1756304290741,0.85840668,111860.0,111850.0,0.50356477]
[1756304291630,0.85840668,111860.0,111850.0,0.41417287]
[1756304291834,0.85840668,111860.0,111850.0,0.05337287]
[1756304292839,0.3413839,111860.0,111850.0,0.05337287]
[1756304293028,0.85840668,111860.0,111850.0,0.05337287]
[1756304293638,1.35920668,111860.0,111850.0,0.03319]
[1756304293833,1.3772818,111860.0,111850.0,0.03319]
[1756304294042,1.0164818,111860.0,111850.0,0.03319]
[1756304294331,1.1272818,111860.0,111850.0,0.03319]
[1756304294936,1.3772818,111860.0,111850.0,0.03319]
[1756304295436,2.2343218,111860.0,111850.0,0.03319]
[1756304295637,1.3772818,111860.0,111850.0,0.03319]
[1756304295943,0.7664818,111860.0,111850.0,0.03319]
[1756304296338,0.6264818,111860.0,111850.0,0.03319]
[1756304297248,0.10945902,111860.0,111850.0,0.4833819]
[1756304297543,0.6264818,111860.0,111850.0,0.03319]
[1756304297846,0.10945902,111860.0,111850.0,0.03319]
[1756304298045,0.6264818,111860.0,111850.0,0.03319]
[1756304298438,0.6264818,111860.0,111850.0,0.1225819]
[1756304298645,0.6264818,111860.0,111850.0,0.4833819]
[1756304298844,0.10945902,111860.0,111850.0,1.25040468]
[1756304299043,0.02007512,111860.0,111850.0,1.25040468]
[1756304299746,0.02007512,111860.0,111850.0,0.7333819]
[1756304300448,0.02007512,111860.0,111850.0,1.25040468]
[1756304301351,0.02007512,111860.0,111850.0,1.25923185]
[1756304301752,0.002,111860.0,111850.0,1.25923185]
[1756304302247,0.002,111860.0,111850.0,1.59912907]
[1756304302551,0.002,111860.0,111850.0,2.11615185]
[1756304303149,0.0893759,111870.0,111860.0,0.0893781]
[1756304303352,0.0893759,111870.0,111860.0,1.3070581]
[1756304303545,0.0893759,111870.0,111860.0,0.3608]
[1756304303746,0.0893759,111870.0,111860.0,1.21768]
[1756304303945,0.0893759,111870.0,111860.0,0.3608]
[1756304304152,0.85639868,111870.0,111860.0,0.3608]
[1756304304538,0.3393759,111870.0,111860.0,0.3608]
[1756304304749,0.85639868,111870.0,111860.0,0.3608]
[1756304304940,0.0893759,111870.0,111860.0,0.4501839]
[1756304305144,0.0913759,111870.0,111860.0,0.3608]
[1756304305345,0.85839868,111870.0,111860.0,0.3608]
[1756304306143,0.0913759,111870.0,111860.0,0.3608]
[1756304306543,0.002,111870.0,111860.0,1.21720668]
[1756304307250,0.0913759,111870.0,111860.0,1.21720668]
[1756304307445,0.0913759,111870.0,111860.0,1.5569439]
[1756304307646,0.0913759,111870.0,111860.0,0.3608]
[1756304307847,0.0913759,111870.0,111860.0,1.3069439]
[1756304309248,0.60839868,111870.0,111860.0,0.3608]
[1756304309443,0.85839868,111870.0,111860.0,0.3608]
[1756304309952,0.0913759,111870.0,111860.0,0.4501839]